bitfinex-derivatives/quotes_SOLF0:USTF0_20251002
["timestamp","ask_amount","ask_price","bid_price","bid_amount"]
[1759375698199,3.11725987,223.89,223.86,7.42]
[1759375698397,3.11725987,223.88,223.85,4.0185]
[1759375698598,3.11725987,223.87,223.86,7.42]
[1759375709014,3.11725987,223.87,223.83,7.72]
[1759375709210,7.24,223.9,223.83,7.72]
[1759375709412,3.11678803,223.89,223.83,7.72]
[1759375709616,10.35678803,223.88,223.82,4.019]
[1759375709909,3.11678803,223.87,223.82,4.019]
[1759375710117,7.24,223.88,223.82,4.019]
[1759375710313,3.11690944,223.87,223.83,7.72]
[1759375710513,7.24,223.88,223.82,11.739]
[1759375710708,3.11691792,223.87,223.83,7.72]
[1759375710915,10.35691792,223.86,223.82,11.739]
[1759375711115,7.24,223.88,223.82,11.739]
[1759375711420,10.35701841,223.87,223.8,4.0194]
[1759375711619,3.11701841,223.86,223.8,4.0194]
[1759375711821,3.11701841,223.85,223.8,4.0194]
[1759375712120,7.24,223.87,223.81,7.72]
[1759375712320,3.15238892,223.86,223.8,11.7394]
[1759375712615,7.24,223.84,223.8,11.7394]
[1759375712919,7.24,223.84,223.81,7.72]
[1759375718522,7.51597225,223.95,223.82,0.44]
[1759375718725,500.0,224.04,223.97,62.4761]
[1759375719019,500.0,224.04,223.97,111.24]
[1759375719219,7.24,224.03,223.99,3.74499353]
[1759375719422,7.24,224.03,224.0,3.95771365]
[1759375719618,7.24,224.03,223.95,5.78]
[1759375719619,8.01710662,224.03,224.01,3.95771365]
[1759375719822,8.01710662,224.03,224.02,3.75669879]
[1759375720417,8.45710662,224.03,223.91,9.7974]
[1759375720617,8.01710662,224.03,223.91,5.78]
[1759375720817,8.01710662,224.03,223.92,62.4915]
[1759375721019,500.0,224.04,223.95,5.78]
[1759375721620,500.0,224.04,223.98,5.78]
[1759375722123,500.0,224.04,223.99,4.0159]
[1759375722430,500.0,224.04,224.01,5.78]
[1759375723226,500.0,224.04,224.01,1.37643935]
[1759375723929,500.0,224.04,224.01,7.15643935]
[1759375724933,500.0,224.04,224.02,5.78]
[1759375725138,500.0,224.04,224.02,7.15643935]
[1759375727738,7.24,224.03,224.02,1.37643935]
[1759375728039,7.24,224.03,224.0,1.37643935]
[1759375729036,500.0,224.04,224.01,4.0156]
[1759375729241,500.0,224.04,224.02,1.37643935]
[1759375730837,507.24,224.04,224.02,1.37643935]
[1759375731441,507.24,224.04,223.98,4.0161]
[1759375731642,7.24,224.03,223.99,1.37643935]
[1759375731843,500.0,224.04,223.99,1.37643935]
[1759375732137,611.1,224.04,223.99,1.37643935]
[1759375732342,7.24,224.03,223.99,1.37643935]
[1759375732539,7.24,224.03,223.96,5.33825532]
[1759375732747,7.24,224.03,223.98,1.37643935]
[1759375733140,7.24,224.03,223.95,4.0166]
[1759375733141,7.24,224.03,223.97,1.37643935]
[1759375735543,7.24,224.03,223.97,7.14643935]
[1759375735747,7.24,224.03,223.99,1.37643935]
[1759375736645,7.91,224.03,223.99,1.37643935]
[1759375737051,500.0,224.04,223.99,1.37643935]
[1759375737252,7.91,224.03,223.99,1.37643935]
[1759375737749,500.0,224.04,223.99,1.37643935]
[1759375737945,7.91,224.03,223.99,1.37643935]
[1759375738146,500.0,224.04,223.99,1.37643935]
[1759375738741,7.91,224.03,223.99,1.37643935]
[1759375739053,7.91,224.03,223.98,1.37643935]
[1759375739249,7.91,224.03,223.94,4.0168]
[1759375739250,110.96,224.02,223.94,4.0168]
[1759375739450,110.96,224.02,223.93,13.34214771]
[1759375739451,7.91,223.99,223.92,1.37643935]
[1759375739650,118.85,223.99,223.92,1.37643935]
[1759375740654,110.94,223.99,223.94,1.37643935]
[1759375741259,1.37643935,224.02,223.98,1.37643935]
[1759375741260,7.91,224.02,223.98,1.37643935]
[1759375741554,7.91,224.03,224.0,1.37643935]
[1759375741754,611.0,224.04,224.0,1.37643935]
[1759375741954,7.91,224.03,224.0,1.37643935]
[1759375742556,611.0,224.04,224.0,1.37643935]
[1759375742758,7.91,224.03,224.0,1.37643935]
[1759375743151,611.0,224.04,224.0,1.37643935]
[1759375744760,7.91,224.03,224.0,1.37643935]
[1759375745053,611.0,224.04,224.0,1.37643935]
[1759375745360,7.91,224.03,224.0,1.37643935]
[1759375745658,611.0,224.04,224.0,1.37643935]
[1759375746161,7.91,224.03,224.0,1.37643935]
[1759375746755,7.91,224.03,224.01,4.0157]
[1759375746957,610.88,224.04,224.01,4.0157]
[1759375747156,618.79,224.04,224.01,4.0157]
[1759375747863,507.91,224.04,224.02,1.37643935]
[1759375748363,500.0,224.04,224.02,1.37643935]
[1759375749963,500.0,224.04,224.01,4.0157]
[1759375749964,507.91,224.04,224.01,4.0157]
[1759375751262,7.91,224.03,223.98,9.7861]
[1759375751457,507.91,224.04,223.98,4.0161]
[1759375751663,110.78,224.03,223.98,5.39253935]
[1759375752054,7.91,224.02,223.98,5.39253935]
[1759375752457,7.91,224.02,224.0,4.0158]
[1759375753766,500.0,224.04,224.02,4.0155]
[1759375754562,507.91,224.04,224.02,4.0155]
[1759375755161,7.91,224.03,224.02,4.0155]
[1759375755363,500.0,224.04,223.99,9.7859]
[1759375755566,7.91,224.03,223.99,4.0159]
[1759375756263,500.0,224.04,223.99,4.0159]
[1759375756462,7.91,224.03,223.99,4.0159]
[1759375756760,500.0,224.04,223.99,4.0159]
[1759375756965,7.91,224.03,223.99,4.0159]
[1759375757662,500.0,224.04,224.0,4.0157]
[1759375757969,7.91,224.03,224.0,4.0157]
[1759375758278,500.0,224.04,224.0,4.0157]
[1759375758570,7.91,224.03,223.97,5.39263935]
[1759375758768,7.91,224.03,223.97,1.37643935]
[1759375759562,7.91,224.03,223.99,4.016]
[1759375760164,610.62,224.04,223.99,4.016]
[1759375760369,7.91,224.03,223.99,4.016]
[1759375760564,610.62,224.04,224.01,4.0157]
[1759375760864,7.91,224.03,224.01,4.0157]
[1759375761463,7.39,224.03,224.01,4.0157]
[1759375761659,610.62,224.04,224.01,4.0157]
[1759375762068,7.39,224.03,224.01,4.0157]
[1759375762967,610.62,224.04,224.01,4.0157]
[1759375763272,7.39,224.03,224.01,4.0157]
[1759375763671,610.62,224.04,224.01,4.0157]
[1759375763969,7.67,224.03,224.01,4.0157]
[1759375764361,7.67,224.03,223.99,4.016]
[1759375764566,610.62,224.04,223.93,4.99332471]
[1759375764567,7.67,224.01,223.93,4.99332471]
[1759375764767,110.44,224.0,223.93,4.99332471]
[1759375765071,110.44,224.0,223.92,40.16116935]
[1759375765266,110.44,224.0,223.92,45.15449406]
[1759375765571,110.44,224.0,223.95,4.0166]
[1759375765867,7.67,223.99,223.95,4.0166]
[1759375766267,110.44,224.0,223.95,4.0166]
[1759375766871,7.67,223.99,223.95,4.0166]
[1759375767468,110.44,224.0,223.95,4.0166]
[1759375767668,7.67,223.99,223.95,4.0166]
[1759375768172,110.44,224.0,223.95,4.0166]
[1759375768466,7.67,223.99,223.95,4.0166]
[1759375768671,110.44,224.0,223.95,4.0166]
[1759375768869,7.67,223.99,223.95,4.0166]
[1759375769167,110.44,224.0,223.95,4.0166]
[1759375769373,110.42,224.01,223.96,4.0164]
[1759375769574,110.42,224.01,223.96,9.7864]
[1759375769575,7.67,224.0,223.96,9.7864]
[1759375769777,7.67,224.0,223.96,4.0164]
[1759375769972,110.42,224.01,223.93,9.01022471]
[1759375770163,7.67,224.0,223.93,4.0169]
[1759375770768,7.67,224.0,223.95,4.0167]
[1759375771769,110.42,224.01,223.95,4.0167]
[1759375771973,7.67,224.0,223.95,4.0167]
[1759375772173,110.42,224.01,223.95,4.0167]
[1759375772474,7.67,224.0,223.95,4.0167]
[1759375773575,110.42,224.01,223.95,4.0167]
[1759375773775,7.67,224.0,223.95,4.0167]
[1759375773978,7.67,224.0,223.93,4.0171]
[1759375775581,7.67,224.0,223.95,4.0167]
[1759375776079,7.67,224.01,223.95,4.0167]
[1759375776381,111.63643935,224.02,223.95,4.0167]
[1759375776382,3.10513169,224.0,223.95,4.0167]
[1759375776582,111.63643935,224.02,223.95,4.0167]
[1759375776880,10.7751273,224.01,223.95,4.0167]
[1759375777074,7.67,224.01,223.95,4.0167]
[1759375777376,500.0,224.04,223.97,4.0163]
[1759375777579,7.67,224.02,223.97,4.0163]
[1759375777881,111.63643935,224.03,223.97,4.0163]
[1759375778074,3.10491279,224.02,223.97,4.0163]
[1759375778274,111.63643935,224.03,223.97,4.0163]
[1759375778577,3.10490004,224.02,223.97,4.0163]
[1759375778772,7.67,224.02,223.97,4.0163]
[1759375778974,111.63643935,224.03,223.97,4.0163]
[1759375779175,7.67,224.01,223.97,4.0163]
[1759375779374,111.63643935,224.03,223.97,4.0163]
[1759375779573,3.10487311,224.02,223.97,4.0163]
[1759375779875,7.67,224.02,223.97,4.0163]
[1759375780075,111.63643935,224.03,223.97,4.0163]
[1759375780377,3.10494102,224.02,223.97,4.0163]
[1759375780567,111.63643935,224.03,223.97,4.0163]
[1759375780771,3.1048617,224.02,223.97,4.0163]
[1759375780968,7.67,224.02,223.97,4.0163]
[1759375781379,111.63643935,224.03,223.97,4.0163]
[1759375781580,3.10483546,224.02,223.97,4.0163]
[1759375781779,7.67,224.02,223.97,4.0163]
[1759375782376,111.63643935,224.03,223.97,4.0163]
[1759375782573,7.67,224.01,223.97,4.0163]
[1759375782780,111.63643935,224.03,223.97,4.0163]
[1759375782974,3.10481209,224.02,223.97,4.0163]
[1759375783172,111.63643935,224.03,223.97,4.0163]
[1759375783376,3.10488394,224.02,223.97,4.0163]
[1759375783577,7.67,224.02,223.97,4.0163]
[1759375783980,111.63643935,224.03,223.97,4.0163]
[1759375784283,3.10479108,224.02,223.97,4.0163]
[1759375784477,110.26,224.03,223.97,4.0163]
[1759375784679,7.67,224.01,223.94,4.0168]
[1759375794888,7.28,223.99,223.92,38.78473]
[1759375795088,3.10519751,223.98,223.92,38.78473]
[1759375795292,2.15174848,224.0,223.92,38.78473]
[1759375795482,7.28,223.98,223.92,38.78473]
[1759375795684,7.28,223.97,223.92,38.78473]
[1759375795884,109.86,223.98,223.92,38.78473]
[1759375796096,3.10534849,223.97,223.92,38.78473]
[1759375796295,3.10496044,223.96,223.92,38.78473]
[1759375796490,109.86,223.98,223.92,38.78473]
[1759375796690,3.10496094,223.97,223.92,38.78473]
[1759375796888,3.10496094,223.96,223.92,38.78473]
[1759375797095,7.28,223.97,223.92,38.78473]
[1759375797290,109.86,223.98,223.92,38.78473]
[1759375797291,3.10429696,223.96,223.92,38.78473]
[1759375797491,7.28,223.97,223.92,38.78473]
[1759375797694,7.28,223.95,223.92,38.78473]
[1759375798493,3.10383931,223.97,223.92,38.78473]
[1759375798693,3.10388905,223.96,223.92,38.78473]
[1759375798994,109.86,223.98,223.92,38.78473]
[1759375799189,7.28,223.96,223.93,9.7971]
[1759375799395,109.86,223.99,223.93,4.0171]
[1759375799694,7.28,223.97,223.94,5.78]
[1759375799896,7.28,223.97,223.93,4.0171]
[1759375800092,7.28,223.98,223.94,5.78]
[1759375800394,7.28,223.98,223.95,4.0167]
[1759375800596,7.28,223.98,223.95,9.7967]
[1759375800793,7.28,223.98,223.95,4.0167]
[1759375801396,6.16714848,224.03,223.96,5.78]
[1759375801397,7.28,224.01,223.96,5.78]
[1759375801695,10.38381293,224.0,223.96,5.78]
[1759375801895,7.28,224.0,223.96,5.78]
[1759375802297,4.0154,224.03,223.95,4.0167]
[1759375802494,10.43785136,224.02,223.95,4.0167]
[1759375802793,3.15785136,224.01,223.95,4.0167]
[1759375803091,7.28,223.99,223.95,9.7967]
[1759375803292,7.28,223.99,223.96,5.78]
[1759375803787,7.28,223.99,223.95,4.0167]
[1759375803992,7.28,224.02,223.96,5.78]
[1759375804293,10.43811514,224.01,223.97,5.78]
[1759375804593,7.28,224.01,223.98,5.78]
[1759375806198,3.15905221,224.0,223.98,5.78]
[1759375806396,507.28,224.04,223.99,4.016]
[1759375806697,3.15890199,224.03,224.0,5.78]
[1759375806897,507.28,224.04,224.0,5.78]
[1759375807097,3.1590338,224.03,224.01,4.0156]
[1759375807298,507.28,224.04,224.01,4.0156]
[1759375807299,507.28,224.04,224.01,9.7956]
[1759375807693,500.0,224.04,224.01,4.0156]
[1759375807900,500.0,224.04,224.02,5.78]
[1759375808699,500.0,224.04,224.03,4.0153]
[1759375808901,500.0,224.04,224.03,9.7953]
[1759375810705,478.7419,224.04,224.03,10.2353]
[1759375810896,457.1966,224.04,224.03,10.2353]
[1759375811202,429.9113,224.04,224.03,10.2353]
[1759375811504,409.3708,224.04,224.03,12.38704848]
[1759375811703,402.4747,224.04,224.03,12.38704848]
[1759375812298,402.4747,224.04,224.03,122.18704848]
[1759375812495,395.6438,224.04,224.03,12.38704848]
[1759375812802,395.6438,224.04,224.03,122.16704848]
[1759375815001,395.6438,224.04,224.03,12.38704848]
[1759375815201,395.6438,224.04,224.03,122.14704848]
[1759375816803,395.6438,224.04,224.03,12.38704848]
[1759375817004,395.6438,224.04,224.03,121.64704848]
[1759375818103,395.6438,224.04,224.03,121.62704848]
[1759375818500,402.9238,224.04,224.01,2.15174848]
[1759375818699,7.28,224.03,224.02,109.68]
[1759375819299,395.6438,224.04,224.02,109.68]
[1759375819506,7.28,224.03,224.02,109.68]
[1759375820911,395.6438,224.04,224.02,113.6954]
[1759375821507,395.6438,224.04,224.02,119.4754]
[1759375821711,395.6438,224.04,224.02,9.7954]
[1759375821910,395.6438,224.04,224.03,109.68]
[1759375822207,395.6438,224.04,224.03,117.61174848]
[1759375822409,303.32016442,224.04,224.03,117.61174848]
[1759375822712,303.32016442,224.04,224.03,118.05174848]
[1759375823608,296.53046442,224.04,224.03,118.05174848]
[1759375823812,289.04836442,224.04,224.03,118.05174848]
[1759375824515,275.12106442,224.04,224.03,118.09174848]
[1759375824712,268.20446442,224.04,224.03,118.09174848]
[1759375824912,268.20446442,224.04,224.03,118.07174848]
[1759375825110,261.50376442,224.04,224.03,118.07174848]
[1759375825310,7.72,224.16,224.08,62.4471]
[1759375825509,7.72,224.16,224.1,2.15174848]
[1759375825708,111.85174848,224.26,224.13,2.15174848]
[1759375825709,7.72,224.26,224.13,2.15174848]
[1759375825915,61.07723034,224.22,224.15,4.0131]
[1759375826213,60.17723034,224.25,224.2,2.15174848]
[1759375826509,60.17723034,224.25,224.17,4.0127]
[1759375826510,7.72,224.24,224.17,4.0127]
[1759375826719,7.72,224.24,224.18,110.02]
[1759375826905,60.17723034,224.25,224.18,110.02]
[1759375827105,60.17723034,224.25,224.21,6.16374848]
[1759375827410,7.72,224.39,224.24,64.55334848]
[1759375827705,124.7331,224.5,224.2,62.4128]
[1759375827706,7.72,224.57,224.4,62.3555]
[1759375827907,0.9,224.51,224.41,111.02]
[1759375828106,62.3116,224.57,224.39,324.78]
[1759375828315,7.72,224.67,224.56,3.37213239]
[1759375828608,62.3003,224.61,224.47,3.63847742]
[1759375828809,2.15174848,224.76,224.54,2.15174848]
[1759375828810,69.5586,224.76,224.54,2.15174848]
[1759375829004,7.3,224.72,224.55,3.37213239]
[1759375829204,7.3,224.79,224.56,384.6]
[1759375829409,7.3,224.73,224.57,119.17213239]
[1759375829712,89.54,224.78,224.57,119.17213239]
[1759375829713,66.6855,224.9,224.78,3.37213239]
[1759375829912,66.6855,224.9,224.72,25.66]
[1759375829913,7.3,224.83,224.72,25.66]
[1759375830104,64.38414848,224.86,224.72,25.66]
[1759375830311,116.6117,224.86,224.73,3.17078085]
[1759375830510,116.6117,224.86,224.66,5.61941351]
[1759375830511,7.3,224.81,224.74,3.17078085]
[1759375830713,7.3,224.73,224.61,46.09078085]
[1759375830912,62.2757,224.7,224.62,3.17078085]
[1759375831210,7.3,224.67,224.63,2.9696463]
[1759375831417,62.298,224.62,224.48,23.7]
[1759375831713,7.3,224.6,224.48,23.7]
[1759375831912,69.6048,224.6,224.49,2.9696463]
[1759375832109,62.3082,224.58,224.46,114.7]
[1759375832314,7.3,224.57,224.46,114.7]
[1759375832507,62.3142,224.56,224.47,2.9696463]
[1759375832708,7.3,224.53,224.44,2.9696463]
[1759375832908,117.24,224.59,224.52,2.9696463]
[1759375833116,124.54,224.59,224.46,117.24]
[1759375833307,124.54,224.59,224.47,2.9696463]
[1759375833716,7.3,224.59,224.48,2.9696463]
[1759375834014,7.3,224.59,224.46,117.24]
[1759375834317,106.9902,224.72,224.58,2.9696463]
[1759375834522,7.3,224.69,224.59,2.9696463]
[1759375834716,7.3,224.69,224.54,3.84]
[1759375834918,7.3,224.69,224.55,2.9696463]
[1759375835419,7.3,224.69,224.56,2.9696463]
[1759375835619,7.3,224.67,224.53,15.48]
[1759375836013,7.3,224.67,224.54,2.9696463]
[1759375836418,7.3,224.67,224.55,2.9696463]
[1759375836617,7.3,224.67,224.54,2.9696463]
[1759375837122,7.3,224.67,224.55,2.9696463]
[1759375837316,62.2645,224.74,224.55,62.3164]
[1759375837317,7.3,224.73,224.55,62.3164]
[1759375837523,7.3,224.73,224.56,2.9696463]
[1759375837918,7.3,224.73,224.57,2.9696463]
[1759375838117,7.3,224.73,224.56,2.9696463]
[1759375838521,7.3,224.73,224.57,2.9696463]
[1759375838722,7.3,224.73,224.56,2.9696463]
[1759375839218,2.3,224.73,224.57,5.9392926]
[1759375839424,2.3,224.73,224.57,2.9696463]
[1759375839718,2.3,224.73,224.58,2.9696463]
[1759375840122,2.3,224.73,224.59,2.9696463]
[1759375840322,2.3,224.73,224.58,2.9696463]
[1759375840823,2.3,224.73,224.59,2.9696463]
[1759375841124,2.3,224.73,224.58,2.9696463]
[1759375841526,2.3,224.73,224.59,2.9696463]
[1759375841719,2.3,224.73,224.58,2.9696463]
[1759375842224,2.3,224.73,224.59,2.9696463]
[1759375842425,2.3,224.73,224.58,2.9696463]
[1759375842824,2.3,224.73,224.59,2.9696463]
[1759375843019,2.3,224.73,224.59,66.3103]
[1759375843219,2.3,224.73,224.61,62.2998]
[1759375843425,2.3,224.73,224.62,117.06]
[1759375843624,2.3,224.73,224.62,120.0296463]
[1759375843824,2.3,224.73,224.63,2.9696463]
[1759375844325,2.3,224.73,224.64,2.9696463]
[1759375844519,2.3,224.73,224.62,117.06]
[1759375844520,10.86348456,224.76,224.63,2.9696463]
[1759375844725,10.86348456,224.76,224.56,3.56348456]
[1759375844726,3.56348456,224.76,224.59,34.32]
[1759375845126,7.3,224.75,224.6,2.9696463]
[1759375845625,73.5636,224.75,224.61,2.9696463]
[1759375845824,73.5636,224.75,224.56,3.59666314]
[1759375845825,7.3,224.75,224.57,35.3696463]
[1759375846225,7.3,224.75,224.58,2.9696463]
[1759375846628,7.3,224.75,224.59,2.9696463]
[1759375846933,7.3,224.75,224.6,2.9696463]
[1759375847124,7.3,224.75,224.58,2.9696463]
[1759375847526,124.2,224.75,224.59,2.9696463]
[1759375847722,7.3,224.75,224.6,62.302]
[1759375847930,7.3,224.75,224.6,2.9696463]
[1759375848131,73.12578456,224.75,224.61,2.9696463]
[1759375848323,7.3,224.74,224.58,69.4696463]
[1759375848526,183.06578456,224.75,224.58,69.4696463]
[1759375848724,7.3,224.73,224.59,2.9696463]
[1759375849136,7.3,224.73,224.62,4.0046]
[1759375849329,7.3,224.73,224.63,2.9696463]
[1759375849530,7.3,224.73,224.64,2.9696463]
[1759375849728,7.3,224.73,224.63,2.9696463]
[1759375849929,7.3,224.73,224.64,4.0044]
[1759375850232,7.3,224.79,224.65,2.9696463]
[1759375850632,7.3,224.79,224.66,2.9696463]
[1759375850824,7.3,224.79,224.65,2.9696463]
[1759375851336,7.3,224.79,224.64,4.0044]
[1759375851337,7.3,224.79,224.66,6.9735463]
[1759375851537,7.3,224.79,224.66,4.0039]
[1759375851837,7.3,224.79,224.67,2.9696463]
[1759375852127,7.3,224.79,224.69,62.2763]
[1759375852329,0.75,224.8,224.7,2.9696463]
[1759375852834,0.75,224.8,224.71,2.9696463]
[1759375853034,0.75,224.8,224.7,2.9696463]
[1759375853234,0.75,224.8,224.73,4.0027]
[1759375853431,0.75,224.8,224.79,5.9392926]
[1759375854232,8.68,224.8,224.79,5.9392926]
[1759375854435,8.68,224.8,224.79,2.9696463]
[1759375855432,8.68,224.8,224.66,35.98849939]
[1759375855433,9.12,224.8,224.63,3.56348456]
[1759375855738,7.93,224.79,224.63,117.36]
[1759375855939,7.93,224.79,224.64,4.0043]
[1759375856632,11.9318,224.79,224.61,4.0049]
[1759375856937,62.2528,224.78,224.63,117.28]
[1759375857237,4.0022,224.77,224.6,121.285]
[1759375857428,65.81628456,224.78,224.6,121.285]
[1759375858135,7.93,224.77,224.6,4.005]
[1759375858335,65.81628456,224.78,224.61,117.28]
[1759375858532,7.93,224.77,224.6,4.005]
[1759375858733,7.93,224.74,224.62,441.2]
[1759375859539,7.93,224.74,224.64,4.0043]
[1759375860036,7.93,224.74,224.62,324.0]
[1759375860238,7.93,224.71,224.62,324.0]
[1759375860538,3.56348456,224.78,224.57,62.3091]
[1759375860738,11.9322,224.77,224.61,3.56348456]
[1759375861131,62.2534,224.78,224.61,117.38]
[1759375861346,7.93,224.74,224.58,3.56348456]
[1759375861536,7.93,224.74,224.61,117.38]
[1759375861738,7.93,224.73,224.61,117.38]
[1759375861937,7.93,224.73,224.6,117.44]
[1759375865641,7.93,224.73,224.59,4.0053]
[1759375865642,7.93,224.73,224.61,117.26]
[1759375866033,4.003,224.72,224.61,117.26]
[1759375866239,7.93,224.71,224.59,117.22]
[1759375866842,4.0034,224.7,224.59,117.22]
[1759375867045,7.93,224.71,224.59,117.22]
[1759375868539,7.93,224.71,224.59,121.2252]
[1759375869444,7.93,224.71,224.59,121.1452]
[1759375871048,11.9332,224.71,224.59,4.0052]
[1759375871846,62.2591,224.76,224.56,7.60236314]
[1759375871847,7.93,224.68,224.56,7.60236314]
[1759375872048,7.93,224.68,224.56,3.59666314]
[1759375872441,7.93,224.68,224.57,62.3108]
[1759375873239,7.93,224.68,224.56,3.59666314]
[1759375874042,4.0041,224.66,224.56,3.59666314]
[1759375874551,7.93,224.65,224.56,3.59666314]
[1759375874750,12.74988126,224.7,224.57,62.3104]
[1759375875046,12.74988126,224.7,224.57,62.3108]
[1759375875047,7.93,224.7,224.57,62.3108]
[1759375875548,7.93,224.77,224.62,62.297]
[1759375875748,7.93,224.77,224.62,179.297]
[1759375876250,7.93,224.77,224.66,4.004]
[1759375876738,7.93,224.75,224.56,3.59666314]
[1759375876944,7.93,224.72,224.6,4.0051]
[1759375877643,7.93,224.72,224.6,62.3008]
[1759375878239,7.93,224.72,224.64,4.0044]
[1759375878750,3.56348456,224.79,224.64,4.0044]
[1759375878947,7.93,224.78,224.64,4.0044]
[1759375879649,4.0021,224.77,224.64,4.0044]
[1759375880537,4.0021,224.77,224.66,4.004]
[1759375880936,3.56348456,224.79,224.63,4.0045]
[1759375880937,7.93,224.76,224.63,4.0045]
[1759375881147,4.0025,224.75,224.63,4.0045]
[1759375881349,62.2538,224.78,224.61,49.92]
[1759375881350,7.93,224.77,224.61,49.92]
[1759375881550,7.59,224.77,224.61,49.92]
[1759375881947,62.2538,224.78,224.61,49.92]
[1759375882245,7.59,224.72,224.61,49.92]
[1759375883650,7.59,224.72,224.62,4.0047]
[1759375884650,7.59,224.72,224.64,4.0044]
[1759375885949,7.48,224.78,224.66,4.0039]
[1759375886551,7.48,224.78,224.68,4.0037]
[1759375887155,7.48,224.78,224.7,4.0033]
[1759375888458,7.48,224.78,224.67,120.4438]
[1759375888656,7.48,224.78,224.67,116.44]
[1759375889455,7.48,224.78,224.69,4.0035]
[1759375889665,7.48,224.78,224.67,116.44]
[1759375889865,7.48,224.78,224.67,121.3432627]
[1759375890563,7.48,224.78,224.68,120.3035]
[1759375891665,7.48,224.78,224.7,4.0033]
[1759375893266,7.48,224.78,224.69,116.16]
[1759375893868,0.75,224.8,224.76,62.2568]
[1759375894368,0.75,224.8,224.77,116.44]
[1759375894568,0.75,224.8,224.77,120.4419]
[1759375895563,0.75,224.8,224.77,4.0019]
[1759375895867,0.75,224.8,224.78,116.36]
[1759375896461,8.23,224.8,224.74,7.69776357]
[1759375896667,8.23,224.8,224.75,116.3]
[1759375897168,8.23,224.8,224.74,120.3025]
[1759375897468,0.75,224.8,224.74,120.3025]
[1759375897671,0.75,224.8,224.74,123.99776357]
[1759375897865,0.75,224.8,224.74,120.3025]
[1759375898266,0.75,224.8,224.76,4.0022]
[1759375898668,0.75,224.8,224.74,116.3]
[1759375898972,7.48,224.79,224.75,116.18]
[1759375900269,0.75,224.8,224.75,4.0024]
[1759375902067,8.23,224.8,224.75,116.06]
[1759375902267,0.75,224.8,224.75,116.06]
[1759375902470,0.75,224.8,224.76,4.0022]
[1759375902670,0.75,224.8,224.75,116.06]
[1759375902872,0.75,224.8,224.75,119.75526357]
[1759375903681,0.75,224.8,224.78,4.0019]
[1759375904075,0.75,224.8,224.79,115.92]
[1759375904578,0.75,224.8,224.79,115.88]
[1759375905380,0.75,224.8,224.78,115.86]
[1759375907475,0.75,224.8,224.72,7.69806357]
[1759375907680,0.75,224.8,224.73,115.7]
[1759375908080,0.75,224.8,224.74,4.0026]
[1759375908677,0.75,224.8,224.75,4.0023]
[1759375909080,0.75,224.8,224.73,119.39526357]
[1759375909282,0.75,224.8,224.74,3.69526357]
[1759375909782,0.75,224.8,224.73,119.39526357]
[1759375910281,0.75,224.8,224.76,4.0023]
[1759375912180,0.75,224.8,224.78,4.0019]
[1759375912380,0.75,224.8,224.79,115.42]
[1759375912775,0.75,224.8,224.75,4.0023]
[1759375913177,0.75,224.8,224.76,115.32]